[Event "*** SCC Grand Prix: Titled Tuesday Blitz"]
[Site "Chess.com"]
[Date "2020.08.11"]
[Round "1"]
[White "Michaelson_11"]
[Black "GoldenShare"]
[Result "0-1"]
[WhiteElo "2106"]
[BlackElo "2504"]
[TimeControl "180+1"]
[EndTime "10:06:54 PDT"]
[Termination "GoldenShare won by resignation"]

1. e4 {[%clk 0:02:58]} 1... c5 {[%clk 0:03:00]} 2. Nc3 {[%clk 0:02:55.7]} 2...
a6 {[%clk 0:02:59.7]} 3. g3 {[%clk 0:02:55.2]} 3... b5 {[%clk 0:03:00]} 4. Bg2
{[%clk 0:02:49.9]} 4... Bb7 {[%clk 0:03:00.1]} 5. Nge2 {[%clk 0:02:48.7]} 5...
e6 {[%clk 0:02:59.6]} 6. O-O {[%clk 0:02:35.6]} 6... Nf6 {[%clk 0:02:21.8]} 7.
d4 {[%clk 0:02:21.1]} 7... cxd4 {[%clk 0:02:20.1]} 8. Nxd4 {[%clk 0:02:22]} 8...
b4 {[%clk 0:02:19.6]} 9. e5 {[%clk 0:02:00.6]} 9... Bxg2 {[%clk 0:02:16.3]} 10.
Kxg2 {[%clk 0:01:56]} 10... bxc3 {[%clk 0:02:16.6]} 11. exf6 {[%clk 0:01:56.6]}
11... gxf6 {[%clk 0:01:50.8]} 12. bxc3 {[%clk 0:01:53.9]} 12... Qc7 {[%clk
0:01:51.1]} 13. Qf3 {[%clk 0:01:46.7]} 13... Nc6 {[%clk 0:01:36.9]} 14. Bf4
{[%clk 0:01:29.9]} 14... e5 {[%clk 0:01:14.5]} 15. Rfe1 {[%clk 0:01:25.9]} 15...
O-O-O {[%clk 0:01:13.9]} 16. Nxc6 {[%clk 0:01:12.1]} 16... Qxc6 {[%clk
0:01:14.8]} 17. Qxc6+ {[%clk 0:01:06.2]} 17... dxc6 {[%clk 0:01:15.7]} 18. Be3
{[%clk 0:01:06.2]} 18... Kc7 {[%clk 0:01:07.4]} 19. Rab1 {[%clk 0:00:58.4]}
19... c5 {[%clk 0:01:01]} 20. c4 {[%clk 0:00:42.7]} 20... Be7 {[%clk 0:00:57.5]}
21. Rb3 {[%clk 0:00:41.9]} 21... Rb8 {[%clk 0:00:53]} 22. Ra3 {[%clk 0:00:41.7]}
22... Rb6 {[%clk 0:00:50.3]} 23. Ra5 {[%clk 0:00:41.5]} 23... Kc6 {[%clk
0:00:50]} 24. Rd1 {[%clk 0:00:41.6]} 24... Ra8 {[%clk 0:00:40]} 25. Rd5 {[%clk
0:00:39.1]} 25... Rb5 {[%clk 0:00:33]} 26. cxb5+ {[%clk 0:00:22.3]} 26... Kxd5
{[%clk 0:00:33]} 27. bxa6 {[%clk 0:00:22.5]} 27... Kc6 {[%clk 0:00:32.5]} 28.
Kf3 {[%clk 0:00:13.4]} 28... Kb6 {[%clk 0:00:31.6]} 29. Ra3 {[%clk 0:00:12.8]}
29... Kb5 {[%clk 0:00:22.6]} 30. Ke4 {[%clk 0:00:12.5]} 30... c4 {[%clk
0:00:22.7]} 31. a7 {[%clk 0:00:09]} 31... Bxa3 {[%clk 0:00:22.2]} 32. Kf5 {[%clk
0:00:08.2]} 32... Bc5 {[%clk 0:00:22.3]} 0-1

[Event "*** SCC Grand Prix: Titled Tuesday Blitz"]
[Site "Chess.com"]
[Date "2020.08.11"]
[Round "1"]
[White "baki83"]
[Black "Ole83"]
[Result "1-0"]
[WhiteElo "2724"]
[BlackElo "2361"]
[TimeControl "180+1"]
[EndTime "10:06:55 PDT"]
[Termination "baki83 won on time"]

1. e4 {[%clk 0:02:58.4]} 1... d6 {[%clk 0:02:45.9]} 2. d4 {[%clk 0:02:55.6]}
2... Nf6 {[%clk 0:02:42]} 3. Nc3 {[%clk 0:02:55.4]} 3... g6 {[%clk 0:02:41.5]}
4. g3 {[%clk 0:02:53]} 4... Bg7 {[%clk 0:02:37.1]} 5. Bg2 {[%clk 0:02:53]} 5...
O-O {[%clk 0:02:36.7]} 6. Nge2 {[%clk 0:02:52.4]} 6... Nbd7 {[%clk 0:02:30.8]}
7. O-O {[%clk 0:02:50.1]} 7... c5 {[%clk 0:02:26.1]} 8. h3 {[%clk 0:02:40.8]}
8... Rb8 {[%clk 0:02:18]} 9. a4 {[%clk 0:02:37.9]} 9... b6 {[%clk 0:02:11.9]}
10. Be3 {[%clk 0:02:34.2]} 10... a6 {[%clk 0:02:00.6]} 11. g4 {[%clk 0:02:11.1]}
11... cxd4 {[%clk 0:01:49]} 12. Bxd4 {[%clk 0:01:52.4]} 12... e5 {[%clk
0:01:34.5]} 13. Be3 {[%clk 0:01:50]} 13... Nc5 {[%clk 0:01:09.4]} 14. Ng3 {[%clk
0:01:41.9]} 14... Bb7 {[%clk 0:01:08.1]} 15. Qd2 {[%clk 0:01:32]} 15... Qc7
{[%clk 0:00:16.8]} 16. Rad1 {[%clk 0:01:06]} 16... Rfd8 {[%clk 0:00:15.6]} 17.
f4 {[%clk 0:00:52]} 17... exf4 {[%clk 0:00:10.2]} 18. Bxf4 {[%clk 0:00:51.6]}
18... Ne6 {[%clk 0:00:10]} 19. Bxd6 {[%clk 0:00:46.5]} 19... Rxd6 {[%clk
0:00:09.4]} 20. Qxd6 {[%clk 0:00:45.6]} 20... Qxd6 {[%clk 0:00:05.1]} 21. Rxd6
{[%clk 0:00:44.9]} 21... Bf8 {[%clk 0:00:04]} 22. Rxe6 {[%clk 0:00:39.6]} 22...
fxe6 {[%clk 0:00:02.5]} 23. Rxf6 {[%clk 0:00:38.7]} 23... Bd6 {[%clk 0:00:02.1]}
24. Nge2 {[%clk 0:00:35.9]} 1-0

[Event "*** SCC Grand Prix: Titled Tuesday Blitz"]
[Site "Chess.com"]
[Date "2020.08.11"]
[Round "1"]
[White "Bodnar_Mykola"]
[Black "Euge_chess"]
[Result "1-0"]
[WhiteElo "2495"]
[BlackElo "2067"]
[TimeControl "180+1"]
[EndTime "10:06:56 PDT"]
[Termination "Bodnar_Mykola won on time"]

1. d4 {[%clk 0:03:00.9]} 1... Nf6 {[%clk 0:02:59.3]} 2. c4 {[%clk 0:03:01.3]}
2... e6 {[%clk 0:02:58.9]} 3. Nc3 {[%clk 0:03:01.3]} 3... c5 {[%clk 0:02:59.1]}
4. d5 {[%clk 0:03:01.3]} 4... exd5 {[%clk 0:02:59.4]} 5. cxd5 {[%clk 0:03:02.2]}
5... d6 {[%clk 0:02:59.8]} 6. e4 {[%clk 0:03:02.2]} 6... g6 {[%clk 0:02:59.8]}
7. f4 {[%clk 0:03:01.9]} 7... Bg7 {[%clk 0:02:59.7]} 8. Bb5+ {[%clk 0:03:02.5]}
8... Nfd7 {[%clk 0:02:58.9]} 9. a4 {[%clk 0:03:02.1]} 9... O-O {[%clk
0:02:57.4]} 10. Nf3 {[%clk 0:03:01.7]} 10... f5 {[%clk 0:02:53.1]} 11. exf5
{[%clk 0:02:52.8]} 11... Qe7+ {[%clk 0:02:43.2]} 12. Qe2 {[%clk 0:02:43.9]}
12... Qxe2+ {[%clk 0:02:37.7]} 13. Bxe2 {[%clk 0:02:44.8]} 13... gxf5 {[%clk
0:02:34.2]} 14. O-O {[%clk 0:02:44.5]} 14... Nb6 {[%clk 0:02:31.1]} 15. Rd1
{[%clk 0:02:43.8]} 15... Re8 {[%clk 0:02:18.9]} 16. Bf1 {[%clk 0:02:42.5]} 16...
Na6 {[%clk 0:02:04.2]} 17. a5 {[%clk 0:02:37]} 17... Nd7 {[%clk 0:02:01.8]} 18.
Nb5 {[%clk 0:02:36.4]} 18... Bf8 {[%clk 0:01:57.4]} 19. Bc4 {[%clk 0:02:23.6]}
19... Nf6 {[%clk 0:01:54.5]} 20. Bd2 {[%clk 0:02:06.4]} 20... Bd7 {[%clk
0:01:52.1]} 21. Re1 {[%clk 0:02:00.2]} 21... Bxb5 {[%clk 0:01:45.7]} 22. Bxb5
{[%clk 0:02:01.1]} 22... Rxe1+ {[%clk 0:01:42.3]} 23. Rxe1 {[%clk 0:02:02]}
23... Ne4 {[%clk 0:01:41.3]} 24. Bc1 {[%clk 0:01:59]} 24... Nc7 {[%clk
0:01:39.9]} 25. Bd7 {[%clk 0:01:56.4]} 25... Rd8 {[%clk 0:01:29.1]} 26. Bxf5
{[%clk 0:01:55.5]} 26... Nf6 {[%clk 0:01:27.6]} 27. Ng5 {[%clk 0:01:43.2]} 27...
Ncxd5 {[%clk 0:01:25.9]} 28. Nxh7 {[%clk 0:01:41.4]} 28... Bg7 {[%clk
0:01:17.5]} 29. Nxf6+ {[%clk 0:01:40.2]} 29... Nxf6 {[%clk 0:01:15.3]} 30. Be6+
{[%clk 0:01:39.2]} 30... Kf8 {[%clk 0:01:11.1]} 31. g4 {[%clk 0:01:39]} 31... d5
{[%clk 0:01:08.9]} 32. Bf5 {[%clk 0:01:32.9]} 32... d4 {[%clk 0:01:06.2]} 33.
Bd2 {[%clk 0:01:26.8]} 33... Nd5 {[%clk 0:00:57.6]} 34. b3 {[%clk 0:01:23]}
34... Nb4 {[%clk 0:00:32.8]} 35. h4 {[%clk 0:01:15.5]} 35... d3 {[%clk
0:00:21.7]} 36. Kg2 {[%clk 0:01:11.8]} 36... Nc2 {[%clk 0:00:21]} 37. Re4 {[%clk
0:01:08.3]} 37... Nd4 {[%clk 0:00:19.6]} 38. Be6 {[%clk 0:01:04.2]} 38... Rd6
{[%clk 0:00:17.1]} 39. Bc4 {[%clk 0:01:03.7]} 39... a6 {[%clk 0:00:11.6]} 40. f5
{[%clk 0:01:03.1]} 40... Nc6 {[%clk 0:00:05.9]} 41. g5 {[%clk 0:01:01.6]} 1-0

[Event "*** SCC Grand Prix: Titled Tuesday Blitz"]
[Site "Chess.com"]
[Date "2020.08.11"]
[Round "1"]
[White "chesslh19"]
[Black "dopolian"]
[Result "0-1"]
[WhiteElo "2176"]
[BlackElo "2536"]
[TimeControl "180+1"]
[EndTime "10:06:57 PDT"]
[Termination "dopolian won by checkmate"]

1. e4 {[%clk 0:03:00.9]} 1... Nc6 {[%clk 0:02:56.7]} 2. d4 {[%clk 0:02:57.6]}
2... e5 {[%clk 0:02:56.3]} 3. d5 {[%clk 0:02:53.9]} 3... Nce7 {[%clk 0:02:56.2]}
4. c4 {[%clk 0:02:34.6]} 4... Ng6 {[%clk 0:02:48.3]} 5. Nc3 {[%clk 0:02:30.6]}
5... Bc5 {[%clk 0:02:40.8]} 6. g3 {[%clk 0:02:20.9]} 6... Nf6 {[%clk 0:02:33.6]}
7. Bg2 {[%clk 0:02:20.3]} 7... O-O {[%clk 0:02:31.5]} 8. Nge2 {[%clk 0:02:15]}
8... d6 {[%clk 0:02:29.4]} 9. O-O {[%clk 0:02:14.8]} 9... a5 {[%clk 0:02:22.4]}
10. a3 {[%clk 0:01:48.8]} 10... c6 {[%clk 0:02:09.9]} 11. Rb1 {[%clk 0:01:46.8]}
11... Bd7 {[%clk 0:02:00.6]} 12. b4 {[%clk 0:01:46]} 12... axb4 {[%clk
0:02:00.4]} 13. axb4 {[%clk 0:01:46.9]} 13... Bb6 {[%clk 0:01:55.8]} 14. h3
{[%clk 0:01:10.2]} 14... cxd5 {[%clk 0:01:54.5]} 15. Nxd5 {[%clk 0:01:07.4]}
15... Nxd5 {[%clk 0:01:53.3]} 16. cxd5 {[%clk 0:01:07.6]} 16... f5 {[%clk
0:01:36.9]} 17. Kh2 {[%clk 0:01:05.9]} 17... f4 {[%clk 0:01:35.5]} 18. Nc3
{[%clk 0:00:47.2]} 18... Qg5 {[%clk 0:01:08]} 19. Bd2 {[%clk 0:00:34.5]} 19...
Ra3 {[%clk 0:00:39.9]} 20. Qe2 {[%clk 0:00:22.9]} 20... h5 {[%clk 0:00:24.9]}
21. Ra1 {[%clk 0:00:20.1]} 21... Rfa8 {[%clk 0:00:23.1]} 22. Rxa3 {[%clk
0:00:19.2]} 22... Rxa3 {[%clk 0:00:24]} 23. Rc1 {[%clk 0:00:11.2]} 23... Bxf2
{[%clk 0:00:16.6]} 24. Qxf2 {[%clk 0:00:09.4]} 24... fxg3+ {[%clk 0:00:17]} 25.
Qxg3 {[%clk 0:00:09.7]} 25... Qxd2 {[%clk 0:00:17.1]} 26. Rg1 {[%clk 0:00:05]}
26... Qf4 {[%clk 0:00:15.2]} 27. Qxf4 {[%clk 0:00:03.2]} 27... Nxf4 {[%clk
0:00:16.1]} 28. Nd1 {[%clk 0:00:02.2]} 28... Bxh3 {[%clk 0:00:15]} 29. Bxh3
{[%clk 0:00:01.8]} 29... Rxh3# {[%clk 0:00:13.6]} 0-1

[Event "*** SCC Grand Prix: Titled Tuesday Blitz"]
[Site "Chess.com"]
[Date "2020.08.11"]
[Round "1"]
[White "kakakz"]
[Black "catzapto"]
[Result "0-1"]
[WhiteElo "2454"]
[BlackElo "1971"]
[TimeControl "180+1"]
[EndTime "10:06:59 PDT"]
[Termination "catzapto won on time"]

1. d4 {[%clk 0:03:00]} 1... Nf6 {[%clk 0:02:59.5]} 2. c4 {[%clk 0:03:00]} 2...
e6 {[%clk 0:02:57.8]} 3. Nf3 {[%clk 0:02:59.4]} 3... d5 {[%clk 0:02:58]} 4. Nc3
{[%clk 0:02:59.1]} 4... c6 {[%clk 0:02:58.2]} 5. g3 {[%clk 0:02:59.5]} 5... dxc4
{[%clk 0:02:50.4]} 6. Bg2 {[%clk 0:02:56.8]} 6... b5 {[%clk 0:02:46.2]} 7. Ne5
{[%clk 0:02:55.5]} 7... Nd5 {[%clk 0:02:39.2]} 8. O-O {[%clk 0:02:45]} 8... Bd6
{[%clk 0:02:33]} 9. Ne4 {[%clk 0:02:42.4]} 9... O-O {[%clk 0:02:24]} 10. a4
{[%clk 0:02:36.7]} 10... Bb7 {[%clk 0:01:51.7]} 11. Nxd6 {[%clk 0:02:23.5]}
11... Qxd6 {[%clk 0:01:50.9]} 12. b3 {[%clk 0:02:18.9]} 12... c3 {[%clk
0:01:39]} 13. e4 {[%clk 0:02:13]} 13... Ne7 {[%clk 0:01:29.3]} 14. Nd3 {[%clk
0:01:47.5]} 14... b4 {[%clk 0:01:26.9]} 15. Nxb4 {[%clk 0:01:44.7]} 15... Qxb4
{[%clk 0:01:25.4]} 16. Ba3 {[%clk 0:01:44.9]} 16... c2 {[%clk 0:01:08.4]} 17.
Qxc2 {[%clk 0:01:38.1]} 17... Qxd4 {[%clk 0:01:08]} 18. Bxe7 {[%clk 0:01:38.2]}
18... Re8 {[%clk 0:01:07.9]} 19. Rfd1 {[%clk 0:01:32.5]} 19... Qb6 {[%clk
0:01:08]} 20. Bc5 {[%clk 0:01:26.6]} 20... Qc7 {[%clk 0:01:08.1]} 21. Bd6 {[%clk
0:01:26.2]} 21... Qb6 {[%clk 0:01:07.8]} 22. e5 {[%clk 0:01:16.8]} 22... Na6
{[%clk 0:01:07.9]} 23. a5 {[%clk 0:01:11.2]} 23... Qd8 {[%clk 0:00:55.7]} 24. b4
{[%clk 0:01:10.4]} 24... Qc8 {[%clk 0:00:53.5]} 25. b5 {[%clk 0:00:57.5]} 25...
cxb5 {[%clk 0:00:53]} 26. Qxc8 {[%clk 0:00:57.3]} 26... Raxc8 {[%clk 0:00:42.2]}
27. Bxb7 {[%clk 0:00:55.9]} 27... Nb8 {[%clk 0:00:34.3]} 28. Bxc8 {[%clk
0:00:53.6]} 28... Rxc8 {[%clk 0:00:35.2]} 0-1

[Event "*** SCC Grand Prix: Titled Tuesday Blitz"]
[Site "Chess.com"]
[Date "2020.08.11"]
[Round "1"]
[White "TigrVShlyape"]
[Black "Fischerev7"]
[Result "1-0"]
[WhiteElo "2864"]
[BlackElo "2418"]
[TimeControl "180+1"]
[EndTime "10:07:00 PDT"]
[Termination "TigrVShlyape won by checkmate"]

1. d4 {[%clk 0:03:00.9]} 1... Nf6 {[%clk 0:02:58]} 2. Nf3 {[%clk 0:03:01.4]}
2... e6 {[%clk 0:02:57.7]} 3. Bf4 {[%clk 0:03:01.5]} 3... c5 {[%clk 0:02:55.1]}
4. e3 {[%clk 0:03:01.6]} 4... Nc6 {[%clk 0:02:54.9]} 5. Nbd2 {[%clk 0:03:00.7]}
5... cxd4 {[%clk 0:02:54.6]} 6. exd4 {[%clk 0:03:00.1]} 6... d5 {[%clk
0:02:53.4]} 7. c3 {[%clk 0:02:59.1]} 7... Bd6 {[%clk 0:02:53.6]} 8. Bg3 {[%clk
0:02:52.8]} 8... O-O {[%clk 0:02:52.1]} 9. Bd3 {[%clk 0:02:50.9]} 9... b6 {[%clk
0:02:48.6]} 10. Qe2 {[%clk 0:02:49.7]} 10... Bb7 {[%clk 0:02:47.7]} 11. O-O
{[%clk 0:02:47.2]} 11... Bxg3 {[%clk 0:02:46.9]} 12. hxg3 {[%clk 0:02:44.7]}
12... Rc8 {[%clk 0:02:39.3]} 13. Rae1 {[%clk 0:02:34.3]} 13... Re8 {[%clk
0:02:29.2]} 14. Ne5 {[%clk 0:02:33]} 14... Nxe5 {[%clk 0:02:28.2]} 15. dxe5
{[%clk 0:02:32.4]} 15... Nd7 {[%clk 0:02:28.5]} 16. Nf3 {[%clk 0:02:29.8]} 16...
Qc7 {[%clk 0:02:12.1]} 17. Nd4 {[%clk 0:02:27.6]} 17... a6 {[%clk 0:01:43.5]}
18. Qh5 {[%clk 0:02:09.1]} 18... g6 {[%clk 0:01:37.5]} 19. Qg5 {[%clk
0:02:09.2]} 19... b5 {[%clk 0:01:17.6]} 20. Re3 {[%clk 0:02:04.9]} 20... b4
{[%clk 0:01:14.2]} 21. Bb1 {[%clk 0:01:16.5]} 21... bxc3 {[%clk 0:01:12.9]} 22.
bxc3 {[%clk 0:01:15.6]} 22... Nc5 {[%clk 0:00:57.7]} 23. g4 {[%clk 0:01:11.3]}
23... Ne4 {[%clk 0:00:53.8]} 24. Bxe4 {[%clk 0:01:10.4]} 24... dxe4 {[%clk
0:00:54.7]} 25. Rh3 {[%clk 0:01:10.9]} 25... f5 {[%clk 0:00:18.4]} 26. exf6
{[%clk 0:01:08.9]} 26... Qf7 {[%clk 0:00:18.3]} 27. Qe5 {[%clk 0:00:52.7]} 27...
Rcd8 {[%clk 0:00:16.9]} 28. g5 {[%clk 0:00:51.9]} 28... Rd5 {[%clk 0:00:16.9]}
29. Qg3 {[%clk 0:00:51.3]} 29... Rc8 {[%clk 0:00:12.1]} 30. Rb1 {[%clk
0:00:46.3]} 30... e5 {[%clk 0:00:11.4]} 31. Nc2 {[%clk 0:00:43.4]} 31... Rd3
{[%clk 0:00:10]} 32. Qxe5 {[%clk 0:00:42.1]} 32... Rxh3 {[%clk 0:00:08]} 33.
gxh3 {[%clk 0:00:42.1]} 33... Re8 {[%clk 0:00:04.7]} 34. Qd4 {[%clk 0:00:38.4]}
34... Qe6 {[%clk 0:00:04]} 35. Rxb7 {[%clk 0:00:36.3]} 35... Qxh3 {[%clk
0:00:02.4]} 36. f7+ {[%clk 0:00:36]} 36... Kf8 {[%clk 0:00:01.8]} 37. Qh8#
{[%clk 0:00:35.9]} 1-0

[Event "*** SCC Grand Prix: Titled Tuesday Blitz"]
[Site "Chess.com"]
[Date "2020.08.11"]
[Round "1"]
[White "googlegoom"]
[Black "IMTominho"]
[Result "0-1"]
[WhiteElo "2387"]
[BlackElo "2758"]
[TimeControl "180+1"]
[EndTime "10:07:00 PDT"]
[Termination "IMTominho won by resignation"]

1. Nf3 {[%clk 0:03:00.9]} 1... d5 {[%clk 0:01:59]} 2. b3 {[%clk 0:02:59.3]} 2...
Bf5 {[%clk 0:01:57.8]} 3. Bb2 {[%clk 0:02:59.3]} 3... e6 {[%clk 0:01:58.2]} 4.
e3 {[%clk 0:02:59.9]} 4... Nf6 {[%clk 0:01:58.2]} 5. Be2 {[%clk 0:03:00.4]} 5...
c6 {[%clk 0:01:57.2]} 6. d4 {[%clk 0:03:00.7]} 6... h6 {[%clk 0:01:55.8]} 7.
Nbd2 {[%clk 0:03:01]} 7... Nbd7 {[%clk 0:01:55.7]} 8. c4 {[%clk 0:02:59.3]} 8...
Bd6 {[%clk 0:01:54.3]} 9. a3 {[%clk 0:02:59.5]} 9... a5 {[%clk 0:01:52.9]} 10.
Bc3 {[%clk 0:02:59.6]} 10... O-O {[%clk 0:01:50.5]} 11. b4 {[%clk 0:02:56.7]}
11... axb4 {[%clk 0:01:47.5]} 12. axb4 {[%clk 0:02:57.1]} 12... Ne4 {[%clk
0:01:39.7]} 13. Nxe4 {[%clk 0:02:56.3]} 13... Bxe4 {[%clk 0:01:39.8]} 14. O-O
{[%clk 0:02:47.7]} 14... dxc4 {[%clk 0:01:36.6]} 15. Bxc4 {[%clk 0:02:46.3]}
15... Nb6 {[%clk 0:01:31.3]} 16. Be2 {[%clk 0:02:41.4]} 16... Nd5 {[%clk
0:01:30]} 17. Qb3 {[%clk 0:02:37.9]} 17... Nxc3 {[%clk 0:01:23.5]} 18. Qxc3
{[%clk 0:02:37.7]} 18... Qb6 {[%clk 0:01:23.6]} 19. Nd2 {[%clk 0:02:09.1]} 19...
Bg6 {[%clk 0:01:22.8]} 20. Nc4 {[%clk 0:01:28.6]} 20... Qxb4 {[%clk 0:01:20.9]}
21. Qxb4 {[%clk 0:01:28.8]} 21... Bxb4 {[%clk 0:01:21]} 22. Nb6 {[%clk 0:01:29]}
22... Rxa1 {[%clk 0:01:18.5]} 23. Rxa1 {[%clk 0:01:28.4]} 23... Re8 {[%clk
0:01:08]} 24. Ra4 {[%clk 0:01:17.2]} 24... c5 {[%clk 0:00:59.3]} 25. Bf3 {[%clk
0:01:07.7]} 25... Bc2 {[%clk 0:00:45.9]} 26. Ra2 {[%clk 0:00:54.5]} 26... Bd3
{[%clk 0:00:37.1]} 27. Bxb7 {[%clk 0:00:46.6]} 27... Rb8 {[%clk 0:00:31.3]} 28.
dxc5 {[%clk 0:00:24.6]} 28... Rxb7 {[%clk 0:00:26.5]} 29. c6 {[%clk 0:00:25]}
29... Rc7 {[%clk 0:00:15.3]} 30. Rb2 {[%clk 0:00:07.1]} 30... Rxc6 {[%clk
0:00:13.8]} 0-1

[Event "*** SCC Grand Prix: Titled Tuesday Blitz"]
[Site "Chess.com"]
[Date "2020.08.11"]
[Round "1"]
[White "sodastream007"]
[Black "Chernobay_Artem"]
[Result "1-0"]
[WhiteElo "2195"]
[BlackElo "2524"]
[TimeControl "180+1"]
[EndTime "10:07:00 PDT"]
[Termination "sodastream007 won on time"]

1. d4 {[%clk 0:03:00.8]} 1... g6 {[%clk 0:02:58.2]} 2. c4 {[%clk 0:02:58.1]}
2... Bg7 {[%clk 0:02:58.3]} 3. Nc3 {[%clk 0:02:58]} 3... c5 {[%clk 0:02:58]} 4.
d5 {[%clk 0:02:57.3]} 4... Bxc3+ {[%clk 0:02:57.8]} 5. bxc3 {[%clk 0:02:58.2]}
5... f5 {[%clk 0:02:57.8]} 6. e4 {[%clk 0:02:58.5]} 6... fxe4 {[%clk 0:02:56.2]}
7. f3 {[%clk 0:02:58.9]} 7... d6 {[%clk 0:02:55.3]} 8. fxe4 {[%clk 0:02:55.7]}
8... Nf6 {[%clk 0:02:54.3]} 9. Bd3 {[%clk 0:02:37.1]} 9... e5 {[%clk 0:02:50.3]}
10. Ne2 {[%clk 0:02:24.6]} 10... Qe7 {[%clk 0:02:35.9]} 11. O-O {[%clk 0:02:24]}
11... h6 {[%clk 0:02:35.6]} 12. h3 {[%clk 0:02:13.8]} 12... Qg7 {[%clk
0:02:32.8]} 13. Rf3 {[%clk 0:02:09.3]} 13... O-O {[%clk 0:02:26.7]} 14. Be3
{[%clk 0:01:58.4]} 14... Nbd7 {[%clk 0:02:13.1]} 15. Qd2 {[%clk 0:01:58.1]}
15... Kh7 {[%clk 0:02:08.5]} 16. Raf1 {[%clk 0:01:55.6]} 16... b6 {[%clk
0:01:53.6]} 17. Kh1 {[%clk 0:01:47.3]} 17... Ba6 {[%clk 0:01:49.3]} 18. g4
{[%clk 0:01:39.8]} 18... Rf7 {[%clk 0:01:33.6]} 19. Ng3 {[%clk 0:01:37.9]} 19...
Raf8 {[%clk 0:01:31.1]} 20. Qg2 {[%clk 0:01:20]} 20... Ng8 {[%clk 0:01:04.9]}
21. h4 {[%clk 0:01:16.5]} 21... Rxf3 {[%clk 0:01:01.4]} 22. Rxf3 {[%clk
0:01:17.4]} 22... Qe7 {[%clk 0:01:00.2]} 23. g5 {[%clk 0:01:13.1]} 23... h5
{[%clk 0:00:51.4]} 24. Rxf8 {[%clk 0:01:10.2]} 24... Nxf8 {[%clk 0:00:49.5]} 25.
Qf3 {[%clk 0:01:03.7]} 25... Bc8 {[%clk 0:00:45.1]} 26. Nf5 {[%clk 0:00:58.7]}
26... Qf7 {[%clk 0:00:41.7]} 27. Kg2 {[%clk 0:00:55.2]} 27... Qd7 {[%clk
0:00:26.2]} 28. Ng3 {[%clk 0:00:49.3]} 28... Qh3+ {[%clk 0:00:21.8]} 29. Kg1
{[%clk 0:00:47.1]} 29... Kg7 {[%clk 0:00:20.2]} 30. Bf2 {[%clk 0:00:43.9]} 30...
Qg4 {[%clk 0:00:13.7]} 31. Qxg4 {[%clk 0:00:42.1]} 31... Bxg4 {[%clk 0:00:13.3]}
32. Nf1 {[%clk 0:00:38]} 32... Nd7 {[%clk 0:00:09.7]} 33. Ne3 {[%clk 0:00:35.8]}
33... Bf3 {[%clk 0:00:04.6]} 34. Be1 {[%clk 0:00:36.1]} 34... Nb8 {[%clk
0:00:03.7]} 35. Kf2 {[%clk 0:00:36]} 35... Bh1 {[%clk 0:00:03.1]} 36. Nf1 {[%clk
0:00:32.9]} 1-0

[Event "*** SCC Grand Prix: Titled Tuesday Blitz"]
[Site "Chess.com"]
[Date "2020.08.11"]
[Round "1"]
[White "pirulillo"]
[Black "TargetA"]
[Result "0-1"]
[WhiteElo "2242"]
[BlackElo "2596"]
[TimeControl "180+1"]
[EndTime "10:07:01 PDT"]
[Termination "TargetA won by checkmate"]

1. e4 {[%clk 0:02:57.3]} 1... c5 {[%clk 0:02:57.9]} 2. Nf3 {[%clk 0:02:52.7]}
2... d6 {[%clk 0:02:58]} 3. d4 {[%clk 0:02:49.2]} 3... cxd4 {[%clk 0:02:58.9]}
4. Nxd4 {[%clk 0:02:49.6]} 4... Nf6 {[%clk 0:02:59.3]} 5. Nc3 {[%clk 0:02:49.8]}
5... a6 {[%clk 0:02:59.2]} 6. Be2 {[%clk 0:02:49.3]} 6... e5 {[%clk 0:02:52.4]}
7. Nb3 {[%clk 0:02:48.8]} 7... Be7 {[%clk 0:02:45.1]} 8. Be3 {[%clk 0:02:48.4]}
8... O-O {[%clk 0:02:44.1]} 9. g4 {[%clk 0:02:46.7]} 9... Nbd7 {[%clk
0:02:15.3]} 10. g5 {[%clk 0:02:45.3]} 10... Ne8 {[%clk 0:02:15]} 11. Qd2 {[%clk
0:02:41.3]} 11... Nc7 {[%clk 0:02:10.2]} 12. h4 {[%clk 0:02:38.1]} 12... b5
{[%clk 0:02:10.3]} 13. O-O-O {[%clk 0:02:33.8]} 13... Bb7 {[%clk 0:02:09.4]} 14.
Nd5 {[%clk 0:02:29.7]} 14... Nxd5 {[%clk 0:02:06.1]} 15. exd5 {[%clk 0:02:30.6]}
15... Nb6 {[%clk 0:01:57.1]} 16. Bxb6 {[%clk 0:02:18.9]} 16... Qxb6 {[%clk
0:01:58]} 17. Na5 {[%clk 0:02:09.3]} 17... Bxd5 {[%clk 0:01:48.3]} 18. Qxd5
{[%clk 0:02:06]} 18... Qxa5 {[%clk 0:01:48.4]} 19. g6 {[%clk 0:01:54.4]} 19...
hxg6 {[%clk 0:01:25.1]} 20. h5 {[%clk 0:01:42.4]} 20... gxh5 {[%clk 0:01:24.9]}
21. Rxh5 {[%clk 0:01:37.9]} 21... g6 {[%clk 0:01:21.6]} 22. Qh1 {[%clk
0:01:07.8]} 22... Bf6 {[%clk 0:01:04.9]} 23. Bd3 {[%clk 0:00:49.6]} 23... e4
{[%clk 0:00:45.3]} 24. Bxe4 {[%clk 0:00:43]} 24... Qxa2 {[%clk 0:00:38.5]} 25.
Bxa8 {[%clk 0:00:33.7]} 25... Qxb2+ {[%clk 0:00:33.8]} 26. Kd2 {[%clk 0:00:33]}
26... Re8 {[%clk 0:00:32]} 27. Bd5 {[%clk 0:00:17.8]} 27... Qb4+ {[%clk
0:00:20.7]} 28. Kc1 {[%clk 0:00:17.7]} 28... Qa3+ {[%clk 0:00:17.1]} 29. Kd2
{[%clk 0:00:17.1]} 29... Qb4+ {[%clk 0:00:15.7]} 30. Kc1 {[%clk 0:00:16.2]}
30... Bb2+ {[%clk 0:00:16.2]} 31. Kb1 {[%clk 0:00:15.6]} 31... Bc3+ {[%clk
0:00:16.6]} 32. Ka2 {[%clk 0:00:14.7]} 32... Qb2# {[%clk 0:00:16]} 0-1